Cogmind - Beta 9 @@@ ROGUE MODE // 2019.10.25 @ 12:59:46 Player: DrZettl Result: Destroyed by L-31 Rogue with Katana Performance ------------- Evolutions (1) 500 Regions Visited (2) 400 Robots Destroyed (14) 70 Value Destroyed (388) 388 Prototype IDs (5) 100 Alien Tech Used (0) 0 Bonus (0) 0 TOTAL SCORE: 1458 Bonus ------- None Cogmind --------- Core Integrity 0/400 Matter 146/300 Energy 81/100 System Corruption 2% Temperature Cool (6) Location -9/Materials Parts ------- Power (1) Propulsion (3) Utility (3) Weapon (2) EM Shotgun Inventory (4) Medium Matter Pod (0) Light Assault Rifle Light Assault Rifle Grenade Launcher Peak State ------------ Power Ion Engine Propulsion Wheel Wheel Compact Wheel Utility High-capacity Storage Unit Sensor Array Light Armor Plating Weapon Heavy Assault Rifle Hammer Inventory Ion Engine Light Treads Light Treads Heat Sink Small Storage Unit Medium Matter Pod Small Laser Small Laser Light Assault Rifle Grenade Launcher [Rating: 11] Favorites ----------- Power Ion Engine Engine Ion Engine Propulsion Compact Wheel Wheel Compact Wheel Hover Unit Improved Hover Unit Utility High-capacity Storage Unit Device Sensor Array Storage High-capacity Storage Unit Protection Light Armor Plating Weapon Light Assault Rifle Energy Gun EM Shotgun Ballistic Gun Light Assault Rifle Launcher Grenade Launcher Impact Weapon Hammer Build | -11 -10 -9 ------- Run | Scr Mat Mat Slots Evolved 2 | . . 2 Power . | . . . Propulsion 1 | . . 1 Utility 1 | . . 1 Weapon . | . . . Parts Attached 25 | 6 5 14 Power 2 | 1 . 1 Engine 2 | 1 . 1 Core . | . . . Reactor . | . . . Propulsion 7 | 2 . 5 Treads . | . . . Leg . | . . . Wheel 5 | 2 . 3 Hover 2 | . . 2 Flight . | . . . Utility 4 | 1 1 2 Device 1 | . . 1 Storage 2 | 1 1 . Processor . | . . . Hackware . | . . . Protection 1 | . . 1 Artifact . | . . . Weapon 12 | 2 4 6 Energy Gun 1 | . . 1 Energy Cannon . | . . . Ballistic Gun 7 | 2 2 3 Ballistic Cannon . | . . . Launcher 3 | . 2 1 Special Weapon . | . . . Impact Weapon 1 | . . 1 Slashing Weapon . | . . . Piercing Weapon . | . . . Special Melee Weapon . | . . . Unidentified Prototypes . | . . . Parts Lost 13 | . . 13 Power 1 | . . 1 Propulsion 6 | . . 6 Utility 2 | . . 2 Weapon 4 | . . 4 Highest Loss Streak 9 | . . 9 Average Slot Usage (%) 91 | . 90 91 Engine 12 | . 14 10 Wheel 28 | . 28 28 Device 5 | . . 10 Storage 16 | . 18 14 Protection 3 | . . 6 Ballistic Gun 20 | . 26 15 Impact Weapon 2 | . . 4 Naked Turns 5 | . . 5 Heaviest Build 47 | 11 45 47 Greatest Support 42 | 32 32 42 Greatest Overweight (x) 4 | . 1 4 Average Overweight (x) . | . . 1 Largest Inventory Capacity 14 | 6 14 14 Average Capacity 10 | 5 8 12 Most Carried 12 | 2 9 12 Average Carried 7 | 1 5 9 Final Capacity 4 | . . 4 Final Carried 4 | . . 4 Class Distribution -------------------- 61% | Mutant 38% | Scavenger-Mutant Dominant Class ---------------- Mutant | -10/Materials Scavenger-Mutant | -9/Materials Resources | -11 -10 -9 ----------- Run | Scr Mat Mat Matter Collected 362 | 207 50 105 Remotely . | . . . Salvage Created 468 | . 50 418 Parts 33 | . 8 25 Haulers Intercepted . | . . . Recyclers Shooed 1 | . . 1 Parts Field Recycled . | . . . Retrieved Matter . | . . . Parts Self-Destructed . | . . . Prevented . | . . . Kills | -11 -10 -9 ------- Run | Scr Mat Mat Combat Hostiles Destroyed 9 | . 1 8 Melee 2 | . . 2 Guns 4 | . . 4 AOE 3 | . 1 2 Classes Destroyed 5 | . 3 2 Worker 2 | . 1 1 Recycler 1 | . . 1 Watcher 2 | . 1 1 Grunt 7 | . 1 6 Sentry 2 | . . 2 Best Kill Streak 3 | . 2 3 Combat Bots Only 3 | . 1 3 Max Kills in Single Turn 3 | . 2 3 Gunslinging . | . . . Exploded 2 | . 1 2 Melee 1 | . . 1 Uniques/NPCs Destroyed . | . . . Combat | -11 -10 -9 -------- Run | Scr Mat Mat Damage Taken 1318 | . 31 1287 Core 417 | . 17 400 Absorbed by Shields . | . . . Core Remaining (%) 96 | 100 93 . Volleys Fired 35 | . 2 33 Largest 2 | . 1 2 Hottest 45 | . 30 45 Shots Fired 64 | . 2 62 Gun 60 | . . 60 Cannon . | . . . Launcher 4 | . 2 2 Special . | . . . Kinetic 59 | . . 59 Thermal . | . . . Explosive 4 | . 2 2 Electromagnetic 1 | . . 1 Robot Hit Streak 9 | . . 9 Robot Miss Streak 3 | . . 3 Penetration Max . | . . . Secondary Targets 2 | . . 2 Max Gunslinging Chain 1 | . . 1 Shots Hit Robots 44 | . . 44 Core Hits 28 | . 4 24 Critical Hits . | . . . Critical Kills . | . . . Critical Parts Destroyed . | . . . Melee Attacks 3 | . . 3 Impact 3 | . . 3 Slashing . | . . . Piercing . | . . . Sneak Attacks . | . . . Combat Hostiles . | . . . Follow-up Attacks . | . . . Damage Inflicted 688 | . 76 612 Guns 424 | . . 424 Cannons . | . . . Explosions 216 | . 76 140 Melee 48 | . . 48 Ramming . | . . . Kinetic 408 | . . 408 Thermal . | . . . Explosive 216 | . 76 140 Electromagnetic 16 | . . 16 Impact 48 | . . 48 Slashing . | . . . Piercing . | . . . Highest Corruption 2 | . . 2 Average Corruption 2 | . . 2 Corruption Purged . | . . . Effects 1 | . . 1 Targeting Errors 1 | . . 1 Overload Shots . | . . . Overflow Damage . | . . . Projectiles . | . . . Explosions . | . . . Melee . | . . . Knockbacks . | . . . Impact . | . . . Kinetic . | . . . Secondary . | . . . Self-Inflicted Damage 23 | . 23 . Shots 1 | . 1 . Rammed . | . . . Targets Rammed . | . . . Kicked . | . . . Crushed . | . . . Highest Temperature 31 | . . 31 Average Temperature 8 | . . 8 Received Heat Transfer 435 | . 6 429 Siege Activations . | . . . Robots Corrupted . | . . . Combat Hostiles . | . . . Parts Fried . | . . . Impact Corruptions . | . . . Robots Melted . | . . . Combat Hostiles . | . . . Parts Melted . | . . . Heat Transferred . | . . . Parts Sabotaged . | . . . Parts Stolen . | . . . Parts Stripped . | . . . Power Chain Reactions . | . . . Missiles Intercepted . | . . . Alert | -11 -10 -9 ------- Run | Scr Mat Mat Peak Influence 285 | . 84 285 Average Influence 74 | . 20 125 Maximum Alert Level 1 | . . 1 Low Security (%) 89 | . . . Level 1 10 | . . . Level 2 . | . . . Level 3 . | . . . Level 4 . | . . . Level 5 . | . . . High Security . | . . . Max Security . | . . . Squads Dispatched 5 | . 2 3 Investigation 1 | . . 1 Extermination . | . . . Reinforcement 4 | . 2 2 Assault . | . . . Garrison . | . . . Intercept . | . . . Construction Impeded . | . . . Haulers Reinforced . | . . . Stealth | -11 -10 -9 --------- Run | Scr Mat Mat Distress Signals 5 | . . 5 Communications Jammed . | . . . Distress Signals . | . . . Times Spotted 26 | . 5 21 Peak Tracking Total 9 | . 3 9 Tactical Retreats . | . . . Traps | -11 -10 -9 ------- Run | Scr Mat Mat Traps Triggered 1 | . . 1 Indirectly . | . . . Trap Hack Attempts . | . . . Triggered . | . . . Disarmed . | . . . Reprogrammed . | . . . Reused . | . . . Traps Extracted . | . . . Installed . | . . . Triggered . | . . . Machines | -11 -10 -9 ---------- Run | Scr Mat Mat Machines Disabled 2 | . 1 1 Max in Single Turn 1 | . 1 1 Machines Sabotaged . | . . . Garrisons Compromised . | . . . Overloaded Fab Kills . | . . . Fab Network Shutdowns . | . . . Hacking | -11 -10 -9 --------- Run | Scr Mat Mat Machines Accessed 6 | . 4 2 Terminals 6 | . 4 2 Fabricators . | . . . Repair Stations . | . . . Recycling Units . | . . . Scanalyzers . | . . . Garrison Access . | . . . Total Hacks 17 | . 10 7 Successful 11 | . 7 4 Failed 6 | . 3 3 Catastrophic 1 | . . 1 Database Lockouts . | . . . Manual 10 | . 4 6 Terminals 17 | . 10 7 Fabricators . | . . . Repair Stations . | . . . Recycling Units . | . . . Scanalyzers . | . . . Garrison Access . | . . . Terminal Hacks 6 | . 4 2 Robot Analysis 1 | . 1 . Prototype ID Bank 3 | . 2 1 Branch Access Points 1 | . . 1 Hauler Manifests 1 | . 1 . Fabricator Hacks . | . . . Repair Station Hacks . | . . . Recycling Unit Hacks . | . . . Scanalyzer . | . . . Garrison Access Hacks . | . . . Unauthorized Hacks 12 | . 6 6 Terminals 5 | . 3 2 Track 2 | . 1 1 Botnet 3 | . 2 1 Fabricators . | . . . Repair Stations . | . . . Recycling Units . | . . . Scanalyzers . | . . . Garrison Access . | . . . Data Cores Recovered . | . . . Used . | . . . Hacking Detections 4 | . 2 2 Full Trace Events 1 | . . 1 Feedback Events . | . . . Feedback Blocked . | . . . Robot Schematics Acquired . | . . . Robots Built . | . . . Matter . | . . . Time . | . . . Total Robot Build Rating . | . . . Part Schematics Acquired . | . . . Parts Built . | . . . Matter . | . . . Time . | . . . Total Part Build Rating . | . . . Parts Repaired . | . . . Time . | . . . Parts Recycled . | . . . Recycled Matter . | . . . Retrieved Matter . | . . . Retrieved Components . | . . . Parts Scanalyzed . | . . . Part Schematics Acquired . | . . . Parts Damaged . | . . . Bothacking | -11 -10 -9 ------------ Run | Scr Mat Mat Used RIF Installer . | . . . Robots Hacked . | . . . Non-combat . | . . . Combat . | . . . Robot Hacks Applied . | . . . Relay Couplers Released . | . . . Robots Rewired . | . . . Allies Hacked . | . . . Hacks Repelled . | . . . Allies | -11 -10 -9 -------- Run | Scr Mat Mat Total Allies . | . . . Largest Group . | . . . Highest-Rated Group . | . . . Highest-Rated Ally . | . . . Total Orders . | . . . Ally Attacks . | . . . Total Damage . | . . . Kills . | . . . Allies Corrupted . | . . . Allies Melted . | . . . Intel | -11 -10 -9 ------- Run | Scr Mat Mat Robot Analysis Total 1 | . 1 . Derelict Logs Recovered . | . . . Drone Launches . | . . . Drone Recoveries . | . . . Exploration | -11 -10 -9 ------------- Run | Scr Mat Mat Turns Passed 767 | 42 326 399 Spaces Moved 577 | 33 294 250 Core 16 | 3 . 13 Treads . | . . . Legs . | . . . Wheels 559 | 30 294 235 Hover 2 | . . 2 Flight . | . . . Fastest Speed 50 | 50 100 50 Average Speed 99 | 95 103 97 Slowest Speed 300 | 100 110 300 Overloaded Moves . | . . . Propulsion Burnouts . | . . . Robots Hopped . | . . . Cave-ins Triggered . | . . . Exploration Rate (%) 32 | 3 68 26 Regions Visited 2 Branch Regions . Pre-discovered Areas . | . . . Known Exits Taken . | . . . Unknown Exits Taken 2 | 1 1 . Scrap Searched . | . . . Spaces Dug . | . . . Terrain Destroyed 18 | . 13 5 Melee . | . . . Projectile . | . . . AOE 18 | . 13 5 Actions | -11 -10 -9 --------- Run | Scr Mat Mat Total 699 | 40 312 347 Wait 33 | . 5 28 Move 575 | 32 293 250 Hop . | . . . Pick Up 21 | 2 7 12 Fast Attach 13 | 6 1 6 Attach 4 | . . 4 Detach 1 | . . 1 Swap 8 | . 4 4 Drop 6 | . . 6 Fire 35 | . 2 33 Melee 3 | . . 3 Ram . | . . . Kick . | . . . Crush . | . . . Escape Stasis . | . . . Rewire . | . . . Trap . | . . . Miscellaneous . | . . . Route ------- -11/Scrapyard -10/Materials (discovered 2 exits: *Mat / [*Min]) -9/Materials (discovered 3 exits: *Min x2 / Sto) History --------- Turn | Location | Event 21 | -11/Scrapyard | Discovered new exit (range 15) 43 | -11/Scrapyard | Entered Materials 138 | -10/Materials | Discovered new exit (range 9) 318 | -10/Materials | Discovered new exit (range 15) 323 | -10/Materials | Build established: Mutant 369 | -10/Materials | Entered another Materials area 369 | -9/Materials | Evolved 2 slots: Propulsion x1, Utility x1 575 | -9/Materials | Identified exit to Mines 575 | -9/Materials | Identified exit to Storage 749 | -9/Materials | Core integrity fell below 50% 756 | -9/Materials | Core integrity fell below 20% 758 | -9/Materials | Released all parts (2) 768 | -9/Materials | Destroyed by L-31 Rogue with Katana Last Messages --------------- 00754_ Acquired Imp. Hover Unit. 00754_ U-05 Engineer lays Concrete. 00754_ G-34 Mercenary destroyed. 00755_ U-05 Engineer lays Concrete. 00755_ K-01 Serf collects debris. 00756_ U-05 Engineer lays Concrete. 00757_ Sensor Array destroyed. 00758_ U-05 Engineer lays Concrete. 00758_ Released Imp. Hover Unit. 00758_ Released Hcp. Storage Unit. 00759_ U-05 Engineer lays Concrete. 00760_ U-05 Engineer builds a Wall. 00760_ U-05 Engineer lays Concrete. 00760_ K-01 Serf collects debris. 00761_ U-05 Engineer lays Concrete. 00763_ Acquired EM Shotgun. 00766_ U-05 Engineer lays Concrete. 00767_ U-05 Engineer builds a Wall. 00767_ K-01 Serf collects debris. 00768_ U-05 Engineer lays Concrete. Map ----- +----------------------------------------------------+ | ?????????????????????????????????????????????????? | | ?????????????????????????????????????????????????? | | ?????????????????????>???????????????????????????? | | ?????????????????????????????????????????????????? | | ???????????????????????????????????? ??????????? | | ???????????????????????????????????# #?????????? | | ???????????????????????????????????# #?????????? | | ???????????????????????????????????# #???####### | | ???????????????????????????????????# #???# | | ???????????????????????????????????# #???# """ | | ???????????????????????????????????# #???# """ | | ???????????????????????????????????# #???# """ | | ???????????????????????????????????# #???# | | ???????????????????????????????????# #???# | | ???????????????????????????????????# #???# = | | ???????????????????????????????????# #???# | | ???????????????????????????#####???# #???#####+# | | ????????????????????????####"T"#####w ####### | | ????????????????????????# w ^ k | | ????????????????????????# =[! | | ????????????????######### /![![ ^ | | ???????????????? # =!!!% ########### | | ??????????????? """ """ # !=!* #?????????## | | ??????????????# """ """ # =![ #??????????# | | ??????????????# """ """ /l [ #??????????# | | ??????????????# #@ k ############ | | ??????????????# # g ## = # | | ??????????????# # " ## # | | ??????????????# #Y " % =![## # | | ??????????????########### %[= [u##==/ # | | ????????????????????????# u *% [o##==/ # | | ????????????????????????+ u #=/ # | | ????????????????????????# ## [ + | | ????????????????????????# #### ## #k | | ????????????????????????# #??# ############ | | ???????????????????????? ??? #### ######### | | ???????????????????????? ??? #?# T # | | ???????????????????????? > ??????# # % | | ???????????????????????? ??????# ] + | | ????????????????????????? #?????# # | | ?????????????????????????#+#???????# """ """ # = | | ???????????????????????????????????# """ """ ###+# | | ???????????????????????????????????# """ """ # | | ???????????????????????????????????# # | | ???????????????????????????????????########### | | ?????????????????????????????????????????????# | | ?????????????????????????????????????????????# | | ?????????????????????????????????????????????# | | ?????????????????????????????????????????????# | | ?????????????????????????????????????????????# | +----------------------------------------------------+ Best States ------------- Heat Dissipation 28 Energy Generation 10 Energy Capacity 250 Matter Stores 260 Matter Capacity 300 Sight Range 16 Robot Scan Range 10 Terrain Scan Density 10 Armor Coverage 150 Evasion (%) 50 Item Schematics ----------------- None Robot Schematics ------------------ None Fabricated ------------ Nothing Alien Tech Used ----------------- None Achievements -------------- root@ Challenges ------------ None Game ------ Seed TargetingHeavyShotgun Manual? 0 Play Time 00:17:15 Cumulative 40.2 hours Start 2019.10.25 @ 12:43:59 End 2019.10.25 @ 12:59:46 Sessions 1 Manual Loads 0 Difficulty Rogue Special Mode None Game No. 48 Rogue 48 Adventurer 0 Explorer 0 Win Type - Total 0 Types 0/0/0/0/0/0/0 Lore% 27 Gallery% 38 Achievement% 18 Wizard Run 0 Options --------- ASCII 0 Keyboard 0 Movement Numpad Keybinds 0 Fullscreen 1 Font 18/SmallcapsGlow Map View 76x50 Tactical HUD 1 Map Filters NONE Filters NONE Steam 1 RUN: da92226f-bb8f-46ae-a4d2-0de3dc264a32